fUSD/lending_fUSD_20250228
["ID","MTS","AMOUNT","RATE_DAILY","PERIOD"]
[354861273,1740751834368,-785.0,0.00044238,2]
[354861274,1740751834378,-1268.0,0.00044238,2]
[354861275,1740751834387,-1426.0,0.00044238,2]
[354861276,1740751834397,-909.0,0.00044238,2]
[354861277,1740751834407,-540.0,0.00044238,2]
[354861278,1740751834417,-4036.0,0.00044238,2]
[354861279,1740751834427,-3383.0,0.00044238,2]
[354861280,1740751834437,-150.0,0.00044238,2]
[354861281,1740751834450,-1011.0,0.00044238,2]
[354861282,1740751834461,-22973.2661304,0.00044258,15]
[354861283,1740751834471,-185.58259642,0.000444,30]
[354861284,1740751834484,-543.38,0.000444,7]
[354861285,1740751834494,-1341.22,0.00044463,2]
[354861286,1740751834504,-209.08,0.00044585,2]
[354861287,1740751834514,-12667.5,0.00044889,8]
[354861288,1740751834524,-14948.86,0.00044889,8]
[354861289,1740751834534,-522.40874151,0.00044973,10]
[354861290,1740751834543,-503.48624474,0.00044973,10]
[354861291,1740751834554,-1500.0,0.00044973,120]
[354861292,1740751834563,-1474.0,0.00044999,7]
[354861293,1740751834573,-15524.11687392,0.00044999,18]
[354861294,1740751834591,-9343.29538754,0.00044999,18]
[354861295,1740751834602,-115133.17805336,0.00045,90]
[354861296,1740751834612,-151.0,0.00045,120]
[354861297,1740751834622,-151.0,0.00045,120]
[354861298,1740751834632,-515.881431,0.00045,61]
[354861299,1740751834642,-850.0,0.00045,2]
[354861300,1740751834652,-154.74,0.00045189,2]
[354861301,1740751834662,-1782.0,0.000452,7]
[354861302,1740751834671,-191.42524327,0.0004522,120]
[354861303,1740751834682,-30024.86296228,0.00045222,10]
[354861304,1740751834692,-150.0,0.00045555,2]
[354861305,1740751834702,-150.0,0.00045555,2]
[354861306,1740751834712,-150.0,0.00045555,2]
[354861307,1740751834722,-150.0,0.00045555,2]
[354861308,1740751834735,-2099.52870775,0.00045563,15]
[354861309,1740751834745,-3282.98,0.000456,8]
[354861310,1740751834755,-3282.98,0.000456,8]
[354861311,1740751834765,-351.23,0.000456,2]
[354861312,1740751834775,-5433.44666696,0.00046,2]
[354861313,1740751834785,-1000.0,0.00046192,2]
[354861314,1740751834795,-239.54,0.000463,8]
[354861315,1740751834805,-2077.0,0.000466,2]
[354861316,1740751834814,-161.54,0.00046693,120]
[354861317,1740751834824,-1341.22,0.00046727,2]
[354861318,1740751834834,-151.0,0.00046959,120]
[354861319,1740751834843,-900.0,0.00047,2]
[354861320,1740751834853,-198.0,0.00047,90]
[354861321,1740751834862,-1276.0,0.00047238,2]
[354861322,1740751834872,-2029.0,0.00047238,2]
[354861323,1740751834881,-150.0,0.00047238,2]
[354861324,1740751834891,-570.0,0.00047238,2]
[354861325,1740751834901,-1582.0,0.00047238,2]
[354861326,1740751834911,-640.0,0.00047238,2]
[354861327,1740751834920,-785.0,0.00047238,2]
[354861328,1740751834930,-1268.0,0.00047238,2]
[354861329,1740751834940,-1426.0,0.00047238,2]
[354861330,1740751834949,-909.0,0.00047238,2]
[354861331,1740751834959,-540.0,0.00047238,2]
[354861332,1740751834968,-4036.0,0.00047238,2]
[354861333,1740751834980,-3383.0,0.00047238,2]
[354861334,1740751834989,-150.0,0.00047238,2]
[354861335,1740751834999,-1009.0,0.00047238,2]
[354861336,1740751835112,-174.05445657,0.00047313,25]
[354861337,1740751835123,-22973.2661304,0.00047387,15]
[354861338,1740751835133,-7358.44870255,0.00047413,21]
[354861339,1740751835143,-5000.0,0.00047413,24]
[354861340,1740751835153,-5000.0,0.00047413,21]
[354861341,1740751835163,-150.17,0.00047461,2]
[354861342,1740751835173,-4907.61577022,0.000476,2]
[354861343,1740751835183,-169.71,0.00047886,120]
[354861344,1740751835193,-1191.81,0.000479,5]
[354861345,1740751835208,-2099.52870775,0.00047952,15]
[354861346,1740751835218,-397.27488283,0.000488,120]
[354861347,1740751835231,-151.0,0.00048904,120]
[354861348,1740751835240,-198.0,0.00048904,90]
[354861349,1740751835251,-1341.22,0.00048991,2]
[354861350,1740751835260,-21448.71306081,0.00049,2]
[354861351,1740751835270,-669.88230122,0.00049,4]
[354861352,1740751835280,-408.01784112,0.000493,2]
[354861353,1740751835292,-1669.76947117,0.000493,2]
[354861354,1740751835301,-154.82,0.00049315,2]
[354861355,1740751835311,-175.41052883,0.00049719,2]
[354861356,1740751835327,-33.66947117,0.00049719,2]
[354861357,1740751835336,-500.0,0.00049999,120]
[354861358,1740751835346,-172.29997672,0.00049999,120]
[354861359,1740751835360,-569.50106906,0.00049999,120]
[354861360,1740751835370,-500.0,0.00049999,120]
[354861361,1740751835379,-500.0,0.00049999,120]
[354861362,1740751835390,-4497.13998393,0.0005,2]
[354861363,1740751835402,-324.47001607,0.0005,2]
[354861364,1740751835412,-354.55891309,0.0005,4]
[354861365,1740751835424,-8303.26521379,0.0005,4]
[354861366,1740751836660,-1342.17587312,0.0005,4]
[354861367,1740751836670,-17794.88290446,0.0005,120]
[354861368,1740751836682,-571.73570326,0.0005,120]
[354861387,1740751837973,-357.24622518,0.0005,120]
[354861391,1740751838052,-9913.32068,0.0005,120]
[354861392,1740751838071,-5152.22959381,0.0005,120]
[354861393,1740751838081,-3961.37457319,0.0005,5]
[354861394,1740751838090,-1490.33538064,0.0005,120]
[354861395,1740751838182,-1025.78544346,0.0005,120]
[354861396,1740751838194,-865.68892614,0.0005,120]
[354861397,1740751838241,-402.39999999,0.0005,120]
[354861398,1740751838254,-1766.79024977,0.0005,120]
[354861399,1740751838263,-2329.25975023,0.0005,120]
[354861447,1740751840128,-528.0,0.0004,5]
[354861448,1740751840139,-604.89,0.00044238,2]
[354861449,1740751840148,-297.69179419,0.0005,120]
[354861450,1740751840160,-435.265,0.0005,120]
[354861451,1740751840512,-691.22970035,0.0005,120]
[354861452,1740751842627,-55.31598127,0.0005,120]
[354861453,1740751842637,-152.0,0.00050055,3]
[354861454,1740751842646,-308.72877273,0.00050238,120]
[354861476,1740751843864,-967.27122727,0.00050238,120]
[354861477,1740751843874,-552.70850608,0.00050238,120]
[354861478,1740751843885,-1476.29149392,0.00050238,120]
[354861479,1740751843895,-382.436,0.00050238,120]
[354861480,1740751843905,-408.836,0.00050238,120]
[354861481,1740751843914,-785.0,0.00050238,2]
[354861482,1740751843924,-68.66774583,0.00050238,120]
[354861483,1740751843937,-1195.33225417,0.00050238,120]
[354861484,1740751843946,-498.0,0.00050238,120]
[354861485,1740751843956,-891.0,0.00050238,120]
[354861486,1740751843966,-539.0,0.00050238,120]
[354861487,1740751843975,-4027.0,0.00050238,120]
[354861488,1740751843987,-1443.894,0.00050238,120]
[354861489,1740751843997,-150.0,0.00050238,120]
[354861490,1740751844007,-2099.52870775,0.00050342,15]
[354861491,1740751844016,-22973.2661304,0.00050515,15]
[354861492,1740751844026,-1644.0,0.000507,11]
[354861493,1740751844035,-151.0,0.00050849,30]
[354861494,1740751844045,-151.0,0.00050849,30]
[354861495,1740751844054,-151.0,0.00050849,30]
[354861496,1740751844064,-151.0,0.00050849,30]
[354861497,1740751844073,-151.0,0.00050849,30]
[354861498,1740751844082,-151.0,0.00050849,30]
[354861499,1740751844091,-151.0,0.00050849,30]
[354861500,1740751844101,-151.0,0.00050849,30]
[354861501,1740751844111,-151.0,0.00050849,30]
[354861502,1740751844120,-151.0,0.00050849,30]
[354861503,1740751844129,-151.0,0.00050849,30]
[354861504,1740751844139,-151.0,0.00050849,30]
[354861505,1740751844149,-151.0,0.00050849,30]
[354861506,1740751844158,-151.0,0.00050849,30]
[354861507,1740751844290,-151.0,0.00050849,30]
[354861508,1740751844300,-151.0,0.00050849,30]
[354861509,1740751844311,-151.0,0.00050849,30]
[354861510,1740751844321,-151.0,0.00050849,30]
[354861511,1740751844331,-151.0,0.00050849,30]
[354861512,1740751844341,-151.0,0.00050849,30]
[354861513,1740751844352,-151.0,0.00050849,30]
[354861514,1740751844362,-151.0,0.00050849,30]
[354861515,1740751844376,-151.0,0.00050849,30]
[354861516,1740751844386,-151.0,0.00050849,30]
[354861517,1740751844396,-151.0,0.00050849,30]
[354861518,1740751844407,-151.0,0.00050849,30]
[354861519,1740751844416,-151.0,0.00050849,30]
[354861520,1740751844425,-151.0,0.00050849,30]
[354861521,1740751844435,-151.0,0.00050849,30]
[354861522,1740751844446,-151.0,0.00050849,30]
[354861523,1740751844456,-151.0,0.00050849,30]
[354861524,1740751844466,-151.0,0.00050849,30]
[354861525,1740751844476,-151.0,0.00050849,30]
[354861526,1740751844488,-151.0,0.00050849,30]
[354861527,1740751844498,-151.0,0.00050849,30]
[354861528,1740751844507,-151.0,0.00050849,30]
[354861529,1740751844517,-151.0,0.00050849,30]
[354861530,1740751844526,-151.0,0.00050849,30]
[354861531,1740751844536,-151.0,0.00050849,30]
[354861532,1740751844546,-151.0,0.00050849,30]
[354861533,1740751844556,-151.0,0.00050849,30]
[354861534,1740751844565,-151.0,0.00050849,30]
[354861535,1740751844574,-151.0,0.00050849,30]
[354861536,1740751844584,-151.0,0.00050849,30]
[354861537,1740751844594,-265.30002885,0.00050849,30]
[354861538,1740751844604,-151.0,0.00050849,120]
[354861539,1740751844613,-154.74,0.00050927,2]
[354861540,1740751844623,-7089.1589403,0.00051,2]
[354861541,1740751844633,-435.48,0.00051112,92]
[354861542,1740751844642,-1341.22,0.00051255,2]
[354861543,1740751844652,-200.0,0.00051344,2]
[354861544,1740751844661,-200.0,0.00051344,2]
[354861545,1740751844671,-200.0,0.00051344,2]
[354861546,1740751844682,-200.0,0.00051344,2]
[354861547,1740751844691,-200.0,0.00051344,2]
[354861548,1740751844701,-200.0,0.00051344,2]
[354861549,1740751844711,-200.0,0.00051344,2]
[354861550,1740751844721,-200.0,0.00051344,2]
[354861551,1740751844730,-200.0,0.00051344,2]
[354861552,1740751844742,-200.0,0.00051344,2]
[354861553,1740751844752,-200.0,0.00051344,2]
[354861554,1740751844762,-200.0,0.00051344,2]
[354861555,1740751844771,-200.0,0.00051344,2]
[354861556,1740751844781,-230.0,0.00051344,2]
[354861557,1740751844791,-151.0,0.00051452,120]
[354861558,1740751844801,-2000.0,0.00051467,8]
[354861559,1740751844811,-5550.0,0.000515,120]
[354861560,1740751844821,-216.0,0.000516,51]
[354861561,1740751844830,-216.0,0.000516,51]
[354861562,1740751844840,-216.0,0.000516,51]
[354861563,1740751844849,-216.0,0.000516,51]
[354861564,1740751844859,-216.0,0.000516,51]
[354861565,1740751844869,-216.0,0.000516,51]
[354861566,1740751844878,-216.0,0.000516,51]
[354861567,1740751844888,-216.0,0.000516,51]
[354861568,1740751844897,-216.0,0.000516,51]
[354861569,1740751844907,-216.0,0.000516,51]
[354861570,1740751844917,-216.0,0.000516,51]
[354861571,1740751844927,-216.0,0.000516,51]
[354861572,1740751844937,-156.53,0.00051818,2]
[354861573,1740751844947,-2099.52870775,0.00052731,15]
[354861574,1740751844957,-151.0,0.00052795,120]
[354861575,1740751844967,-4191.2124,0.000528,120]
[354861576,1740751844977,-5550.0,0.000529,120]
[354861577,1740751844990,-295.31093869,0.00053,50]
[354861578,1740751845000,-273.0,0.00053,120]
[354861579,1740751845009,-150.0,0.00053238,120]
[354861580,1740751845019,-152.0,0.00053332,4]
[354861581,1740751845028,-1341.22,0.00053519,2]
[354861582,1740751845038,-1230.97488801,0.000536,30]
[354861583,1740751845047,-22973.2661304,0.00053643,15]
[354861584,1740751845057,-885.6955198,0.00053698,4]
[354861585,1740751845067,-2996.68403364,0.00054,30]
[354861586,1740751845077,-438.703989,0.000545,120]
[354861587,1740751845086,-500.0,0.0005452,2]
[354861588,1740751845096,-500.0,0.0005452,2]
[354861589,1740751845106,-500.0,0.0005452,2]
[354861590,1740751845116,-500.0,0.0005452,2]
[354861591,1740751845125,-500.0,0.0005452,2]
[354861592,1740751845135,-464.5829,0.0005452,2]
[354861593,1740751845145,-189.2559354,0.00054594,32]
[354861594,1740751845155,-211.83421008,0.00054653,120]
[354861595,1740751845164,-167.67,0.00054693,15]
[354861596,1740751845174,-88888.0,0.00054694,120]
[354861597,1740751845183,-515.881431,0.000547,99]
[354861598,1740751845193,-151.0,0.0005474,120]
[354861599,1740751845203,-3500.0,0.0005474,120]
[354861600,1740751845213,-198.39210658,0.00054784,7]
[354861601,1740751845223,-1000.0,0.00054794,2]
[354861602,1740751845236,-1000.0,0.00054794,2]
[354861603,1740751845246,-1000.0,0.00054794,2]
[354861604,1740751845255,-728.01678705,0.00054794,2]
[354861605,1740751845265,-500.0,0.00054794,2]
[354861606,1740751845275,-500.0,0.00054794,2]
[354861607,1740751845284,-500.0,0.00054794,2]
[354861608,1740751845294,-500.0,0.00054794,2]
[354861609,1740751845304,-500.0,0.00054794,120]
[354861610,1740751845313,-505.9772295,0.00054794,120]
[354861611,1740751845323,-1000.0,0.00054794,2]
[354861612,1740751845333,-1007.58852568,0.00054794,2]
[354861613,1740751845343,-500.0,0.00054794,7]
[354861614,1740751845354,-500.0,0.00054794,120]
[354861615,1740751845364,-151.0,0.00054794,120]
[354861616,1740751845377,-151.0,0.00054794,120]
[354861617,1740751845387,-329.4473821,0.00054794,120]
[354861618,1740751845398,-505.76357002,0.00054794,7]
[354861619,1740751845407,-151.0,0.00054794,120]
[354861620,1740751845417,-500.0,0.00054794,120]
[354861621,1740751845427,-500.0,0.00054794,120]
[354861622,1740751845437,-500.0,0.00054794,120]
[354861623,1740751845448,-500.0,0.00054794,120]
[354861624,1740751845458,-500.0,0.00054794,120]
[354861625,1740751845468,-500.0,0.00054794,120]
[354861626,1740751845478,-500.0,0.00054794,120]
[354861627,1740751845492,-500.0,0.00054794,120]
[354861628,1740751845502,-151.0,0.00054794,120]
[354861629,1740751845511,-500.0,0.00054794,120]
[354861630,1740751845522,-500.0,0.00054794,120]
[354861631,1740751845531,-500.0,0.00054794,120]
[354861632,1740751845542,-500.0,0.00054794,120]
[354861633,1740751845551,-500.0,0.00054794,120]
[354861634,1740751845561,-235.76151338,0.00054794,120]
[354861635,1740751845571,-500.0,0.00054794,120]
[354861636,1740751845580,-500.0,0.00054794,120]
[354861637,1740751845590,-500.0,0.00054794,120]
[354861638,1740751845600,-500.0,0.00054794,120]
[354861639,1740751845610,-500.0,0.00054794,2]
[354861640,1740751845619,-500.0,0.00054794,120]
[354861641,1740751845629,-500.0,0.00054794,120]
[354861642,1740751845638,-645.50781108,0.00054794,2]
[354861643,1740751845648,-173.05,0.00054794,120]
[354861644,1740751845658,-579.04,0.00054794,120]
[354861645,1740751845667,-500.0,0.00054794,120]
[354861646,1740751845677,-551.7273487,0.00054794,120]
[354861647,1740751845686,-420.91509799,0.00054794,120]
[354861648,1740751845696,-500.0,0.00054794,120]
[354861649,1740751845705,-500.0,0.00054794,120]
[354861650,1740751845715,-500.0,0.00054794,120]
[354861651,1740751845725,-524.41991111,0.00054794,120]
[354861652,1740751845736,-500.0,0.00054794,120]
[354861653,1740751845747,-500.0,0.00054794,120]
[354861654,1740751845757,-500.0,0.00054794,120]
[354861655,1740751845766,-500.0,0.00054794,120]
[354861657,1740751845776,-500.0,0.00054794,120]
[354861659,1740751845785,-593.03977636,0.00054794,120]
[354861661,1740751845795,-500.0,0.00054794,120]
[354861663,1740751845805,-500.0,0.00054794,120]
[354861664,1740751845814,-151.0,0.00054794,120]
[354861665,1740751845823,-500.0,0.00054794,120]
[354861666,1740751845833,-628.41441398,0.00054794,120]
[354861667,1740751845843,-500.0,0.00054794,120]
[354861668,1740751845852,-500.0,0.00054794,120]
[354861669,1740751845862,-500.0,0.00054794,120]
[354861670,1740751845872,-500.0,0.00054794,120]
[354861671,1740751845881,-151.0,0.00054794,120]
[354861672,1740751845891,-500.0,0.00054794,120]
[354861673,1740751845900,-500.0,0.00054794,120]
[354861674,1740751845909,-500.0,0.00054794,120]
[354861675,1740751845919,-500.0,0.00054794,120]
[354861676,1740751845928,-500.0,0.00054794,120]
[354861677,1740751845938,-200.0,0.00054794,7]
[354861678,1740751845947,-500.0,0.00054794,120]
[354861680,1740751845955,-151.0,0.00054794,30]
[354861682,1740751845965,-153.893052,0.00054794,120]
[354861684,1740751845974,-500.0,0.00054794,120]
[354861685,1740751845985,-151.0,0.00054794,120]
[354861686,1740751845994,-159.164146,0.00054794,120]
[354861687,1740751846003,-154.618068,0.00054794,120]
[354861688,1740751846012,-500.0,0.00054794,120]
[354861689,1740751846021,-500.0,0.00054794,120]
[354861690,1740751846030,-151.0,0.00054794,30]
[354861693,1740751846039,-157.052759,0.00054794,120]
[354861694,1740751846048,-500.0,0.00054794,120]
[354861696,1740751846057,-500.0,0.00054794,120]
[354861697,1740751846067,-500.0,0.00054794,120]
[354861698,1740751846076,-854.970573,0.00054794,120]
[354861699,1740751846085,-201.647154,0.00054794,120]
[354861700,1740751846094,-500.0,0.00054794,120]
[354861701,1740751846103,-337.35949622,0.00054794,120]
[354861702,1740751846112,-500.0,0.00054794,120]
[354861703,1740751846120,-500.0,0.00054794,120]
[354861704,1740751846130,-500.0,0.00054794,120]
[354861705,1740751846138,-500.0,0.00054794,120]
[354861706,1740751846147,-500.0,0.00054794,120]
[354861707,1740751846156,-500.0,0.00054794,120]
[354861708,1740751846165,-289.15228317,0.00054794,120]
[354861709,1740751846174,-500.0,0.00054794,120]
[354861710,1740751846183,-500.0,0.00054794,120]
[354861711,1740751846192,-1000.0,0.00054794,120]
[354861712,1740751846201,-500.0,0.00054794,2]
[354861713,1740751846211,-500.0,0.00054794,2]
[354861714,1740751846220,-500.0,0.00054794,2]
[354861715,1740751846229,-500.0,0.00054794,2]
[354861716,1740751846241,-500.0,0.00054794,2]
[354861717,1740751846250,-500.0,0.00054794,120]
[354861718,1740751846259,-500.0,0.00054794,120]
[354861719,1740751846268,-500.0,0.00054794,120]
[354861720,1740751846277,-561.96495662,0.00054794,120]
[354861721,1740751846287,-500.0,0.00054794,120]
[354861722,1740751846296,-500.0,0.00054794,120]
[354861723,1740751846306,-500.0,0.00054794,120]
[354861724,1740751846315,-500.0,0.00054794,90]
[354861725,1740751846325,-500.0,0.00054794,90]
[354861726,1740751846335,-500.0,0.00054794,90]
[354861727,1740751846345,-500.0,0.00054794,90]
[354861728,1740751846360,-500.0,0.00054794,120]
[354861729,1740751846370,-500.0,0.00054794,120]
[354861730,1740751846380,-586.05691753,0.00054794,120]
[354861731,1740751846389,-500.0,0.00054794,120]
[354861732,1740751846399,-500.0,0.00054794,120]
[354861733,1740751846408,-500.0,0.00054794,120]
[354861734,1740751846418,-500.0,0.00054794,120]
[354861735,1740751846428,-500.0,0.00054794,120]
[354861736,1740751846437,-500.0,0.00054794,120]
[354861737,1740751846448,-151.0,0.00054794,120]
[354861738,1740751846457,-500.0,0.00054794,120]
[354861739,1740751846467,-500.0,0.00054794,120]
[354861740,1740751846477,-500.0,0.00054794,120]
[354861741,1740751846489,-500.0,0.00054794,120]
[354861742,1740751846499,-500.0,0.00054794,120]
[354861743,1740751846508,-500.0,0.00054794,120]
[354861744,1740751846518,-151.0,0.00054794,120]
[354861745,1740751846527,-500.0,0.00054794,120]
[354861746,1740751846537,-152.344725,0.00054794,120]
[354861747,1740751846547,-500.0,0.00054794,120]
[354861748,1740751846556,-151.0,0.00054794,120]
[354861749,1740751846566,-500.0,0.00054794,120]
[354861750,1740751846575,-569.2234161,0.00054794,120]
[354861751,1740751846585,-500.0,0.00054794,120]
[354861752,1740751846594,-500.0,0.00054794,120]
[354861753,1740751846604,-1106.29,0.00054794,120]
[354861754,1740751846614,-151.0,0.00054794,120]
[354861755,1740751846624,-500.0,0.00054794,120]
[354861756,1740751846634,-151.0,0.00054794,120]
[354861757,1740751846644,-500.0,0.00054794,120]
[354861758,1740751846653,-152.316972,0.00054794,120]
[354861759,1740751846748,-151.0,0.00054794,120]
[354861760,1740751846772,-500.0,0.00054794,120]
[354861761,1740751846782,-151.985265,0.00054794,120]
[354861762,1740751846792,-500.0,0.00054794,120]
[354861763,1740751846802,-554.27,0.00054794,120]
[354861764,1740751846811,-500.0,0.00054794,120]
[354861766,1740751846821,-500.0,0.00054794,120]
[354861768,1740751846831,-500.0,0.00054794,120]
[354861770,1740751846841,-987.26,0.00054794,120]
[354861772,1740751846850,-500.0,0.00054794,120]
[354861774,1740751846860,-500.0,0.00054794,120]
[354861776,1740751846869,-500.0,0.00054794,120]
[354861778,1740751846879,-500.0,0.00054794,120]
[354861780,1740751846889,-500.0,0.00054794,120]
[354861782,1740751846899,-500.0,0.00054794,120]
[354861784,1740751846908,-2962.03,0.00054794,2]
[354861786,1740751846918,-500.0,0.00054794,120]
[354861787,1740751846928,-500.0,0.00054794,120]
[354861788,1740751846938,-500.0,0.00054794,120]
[354861789,1740751846947,-500.0,0.00054794,120]
[354861790,1740751846957,-500.0,0.00054794,120]
[354861791,1740751846967,-500.0,0.00054794,120]
[354861792,1740751846977,-1000.0,0.00054794,120]
[354861794,1740751846988,-500.0,0.00054794,120]
[354861795,1740751846998,-151.0,0.00054794,120]
[354861796,1740751847008,-500.0,0.00054794,120]
[354861797,1740751847018,-151.0,0.00054794,120]
[354861798,1740751847027,-500.0,0.00054794,120]
[354861799,1740751847037,-500.0,0.00054794,120]
[354861800,1740751847047,-500.0,0.00054794,120]
[354861801,1740751847057,-500.0,0.00054794,120]
[354861802,1740751847067,-500.0,0.00054794,120]
[354861803,1740751847076,-685.62,0.00054794,120]
[354861804,1740751847086,-151.0,0.00054794,120]
[354861805,1740751847096,-500.0,0.00054794,120]
[354861806,1740751847105,-500.0,0.00054794,120]
[354861807,1740751847115,-500.0,0.00054794,120]
[354861808,1740751847125,-500.0,0.00054794,120]
[354861809,1740751847135,-500.0,0.00054794,120]
[354861810,1740751847145,-627.29,0.00054794,120]
[354861811,1740751847155,-151.0,0.00054794,120]
[354861812,1740751847164,-1136.83,0.00054794,120]
[354861813,1740751847173,-500.0,0.00054794,120]
[354861814,1740751847183,-500.0,0.00054794,120]
[354861815,1740751847192,-500.0,0.00054794,120]
[354861816,1740751847202,-500.0,0.00054794,120]
[354861817,1740751847211,-500.0,0.00054794,120]
[354861818,1740751847220,-500.0,0.00054794,120]
[354861819,1740751847230,-500.0,0.00054794,120]
[354861820,1740751847241,-500.0,0.00054794,120]
[354861821,1740751847250,-500.0,0.00054794,120]
[354861822,1740751847259,-500.0,0.00054794,120]
[354861823,1740751847268,-500.0,0.00054794,100]
[354861824,1740751847278,-500.0,0.00054794,120]
[354861825,1740751847287,-324.86006143,0.00054794,120]
[354861826,1740751847296,-500.0,0.00054794,120]
[354861827,1740751847307,-500.0,0.00054794,120]
[354861828,1740751847316,-500.0,0.00054794,120]
[354861829,1740751847326,-500.0,0.00054794,120]
[354861830,1740751847336,-634.65,0.00054794,120]
[354861831,1740751847347,-151.0,0.00054794,120]
[354861832,1740751847357,-575.18,0.00054794,120]
[354861833,1740751847371,-500.0,0.00054794,120]
[354861834,1740751847381,-500.0,0.00054794,120]
[354861835,1740751847390,-552.68,0.00054794,120]
[354861836,1740751847401,-500.0,0.00054794,120]
[354861837,1740751847411,-1080.26,0.00054794,120]
[354861838,1740751847421,-771.67,0.00054794,120]
[354861839,1740751847430,-500.0,0.00054794,120]
[354861840,1740751847440,-500.0,0.00054794,120]
[354861841,1740751847451,-500.0,0.00054794,120]
[354861842,1740751847461,-1485.92,0.00054794,120]
[354861843,1740751847471,-500.0,0.00054794,120]
[354861844,1740751847480,-500.0,0.00054794,120]
[354861845,1740751847493,-500.0,0.00054794,120]
[354861846,1740751847502,-500.0,0.00054794,120]
[354861847,1740751847512,-674.71,0.00054794,120]
[354861848,1740751847522,-500.0,0.00054794,120]
[354861849,1740751847536,-500.0,0.00054794,120]
[354861850,1740751847547,-500.0,0.00054794,120]
[354861851,1740751847557,-500.0,0.00054794,120]
[354861852,1740751847568,-500.0,0.00054794,120]
[354861853,1740751847579,-500.0,0.00054794,120]
[354861854,1740751847590,-501.02171109,0.00054794,120]
[354861855,1740751847599,-500.0,0.00054794,120]
[354861856,1740751847609,-500.0,0.00054794,120]
[354861857,1740751847618,-500.0,0.00054794,120]
[354861858,1740751847628,-500.0,0.00054794,120]
[354861859,1740751847638,-502.27252993,0.00054794,7]
[354861860,1740751847647,-500.0,0.00054794,120]
[354861861,1740751847658,-500.0,0.00054794,120]
[354861862,1740751847668,-500.0,0.00054794,120]
[354861863,1740751847678,-500.0,0.00054794,120]
[354861864,1740751847687,-500.0,0.00054794,120]
[354861865,1740751847697,-500.0,0.00054794,120]
[354861866,1740751847708,-500.0,0.00054794,120]
[354861867,1740751847718,-500.0,0.00054794,120]
[354861868,1740751847728,-500.0,0.00054794,120]
[354861869,1740751847740,-500.0,0.00054794,120]
[354861870,1740751847750,-920.66,0.00054794,120]
[354861871,1740751847759,-500.0,0.00054794,120]
[354861872,1740751847769,-500.0,0.00054794,120]
[354861873,1740751847779,-142.48654393,0.00054794,120]
[354861874,1740751847805,-357.51345607,0.00054794,120]
[354861875,1740751847816,-500.0,0.00054794,120]
[354861876,1740751847826,-500.0,0.00054794,120]
[354861877,1740751847835,-500.0,0.00054794,120]
[354861878,1740751847845,-500.0,0.00054794,120]
[354861879,1740751847855,-500.0,0.00054794,120]
[354861880,1740751847865,-500.0,0.00054794,120]
[354861881,1740751847875,-500.0,0.00054794,120]
[354861882,1740751847884,-579.68902564,0.00054794,120]
[354861883,1740751847894,-500.0,0.00054794,120]